Department Family,Entity,Date,Expenses Type,Expense Area,Supplier,Transaction Number,  Total  ,
Department of Health,The Christie NHS Foundation Trust,24/10/2019,Medical Equipment,Network Services,BRAINLAB LTD,0000626354,"28,051.86",
Department of Health,The Christie NHS Foundation Trust,10/10/2019,Integra Bureau Service,Finance & Business Development,CAPITA SECURE INFORMATION SOLUTIONS LTD,0000626319,"56,863.00",
Department of Health,The Christie NHS Foundation Trust,17/10/2019,Radiology Village,Capital,DAY ARCHITECTURAL LTD,0000625099,"25,971.00",
Department of Health,The Christie NHS Foundation Trust,17/10/2019,Energy Contract Sep 19,Network Services,EDF ENERGY,0000626756,"31,531.57",
Department of Health,The Christie NHS Foundation Trust,17/10/2019,Energy Contract Sep 19,Network Services,EDF ENERGY,0000626758,"42,057.60",
Department of Health,The Christie NHS Foundation Trust,17/10/2019,Construction Project,Capital,ELECTRICITY NORTH WEST,0000625861,"91,570.29",
Department of Health,The Christie NHS Foundation Trust,03/10/2019,Medical Equipment,Network Services,GILEAD SCIENCES LTD,0000625075,"224,360.80",
Department of Health,The Christie NHS Foundation Trust,24/10/2019,Professional Design Consultancy,Capital,GILLING DOD LTD,0000627161,"30,250.00",
Department of Health,The Christie NHS Foundation Trust,03/10/2019,Insurance,Finance & Business Development,GRIFFITHS & ARMOUR,0000625170,"253,053.92",
Department of Health,The Christie NHS Foundation Trust,17/10/2019,Drugs,Drugs,HEALTHCARE AT HOME LTD,0000625840,"27,708.00",
Department of Health,The Christie NHS Foundation Trust,03/10/2019,Computer Equipment,Capital,HP INC.UK LIMITED,0000624540,"85,903.67",
Department of Health,The Christie NHS Foundation Trust,24/10/2019,Paterson Development,Capital,INTERSERVE CONSTRUCTION LTD,0000626939,"643,656.54",
Department of Health,The Christie NHS Foundation Trust,24/10/2019,Paterson Development,Capital,INTERSERVE CONSTRUCTION LTD,0000627622,"33,017.90",
Department of Health,The Christie NHS Foundation Trust,10/10/2019,Service Contract,Clinical Support & Specialist Surgery,INTUITIVE SURGICAL LTD,0000625909,"26,288.40",
Department of Health,The Christie NHS Foundation Trust,10/10/2019,Staff Travel,All departments,KEY TRAVEL,0000625576,"25,948.65",
Department of Health,The Christie NHS Foundation Trust,24/10/2019,Drugs,Drugs,LLOYDSPHARMACY CLINICAL HOMECARE,0000627179,"38,830.64",
Department of Health,The Christie NHS Foundation Trust,07/10/2019,Rates 19/20,Estates & Facilities,M/CR CITY COUNCIL (RATES) DD,0000626761,"77,883.00",
Department of Health,The Christie NHS Foundation Trust,24/10/2019,Software Licences,Trust Administration,MANCHESTER UNIVERSITY NHS FT,0000625349,"34,366.00",
Department of Health,The Christie NHS Foundation Trust,24/10/2019,ENT SLA 19/20,Clinical Support & Specialist Surgery,MANCHESTER UNIVERSITY NHS FT,0000626126,"25,956.53",
Department of Health,The Christie NHS Foundation Trust,31/10/2019,Stem Cell Unit Refurbishment,Research & Innovation,MC FACILITIES SERVICE,0000626714,"43,697.00",
Department of Health,The Christie NHS Foundation Trust,24/10/2019,Block A Refurbishment,Capital,MC FACILITIES SERVICE,0000626087,"21,560.00",
Department of Health,The Christie NHS Foundation Trust,10/10/2019,Block A Refurbishment,Estates & Facilities,MC FACILITIES SERVICE,0000624684,"54,689.00",
Department of Health,The Christie NHS Foundation Trust,03/10/2019,Macmillan Service Jul & Aug 19,Network Services,MID CHESHIRE HOSPITALS NHS FT,0000619637,"53,032.89",
Department of Health,The Christie NHS Foundation Trust,24/10/2019,Drugs,Drugs,MID CHESHIRE HOSPITALS NHS FT,0000621469,"140,677.81",
Department of Health,The Christie NHS Foundation Trust,24/10/2019,Drugs,Drugs,MID CHESHIRE HOSPITALS NHS FT,0000624468,"212,079.49",
Department of Health,The Christie NHS Foundation Trust,31/10/2019,Macmillan Service Apr 19,Network Services,MID CHESHIRE HOSPITALS NHS FT,0000612119,"45,704.37",
Department of Health,The Christie NHS Foundation Trust,24/10/2019,Drugs,Drugs,MID CHESHIRE HOSPITALS NHS FT,0000619605,"114,291.52",
Department of Health,The Christie NHS Foundation Trust,24/10/2019,Macmillan Service Sept 19,Network Services,MID CHESHIRE HOSPITALS NHS FT,0000624443,"47,536.50",
Department of Health,The Christie NHS Foundation Trust,24/10/2019,Macmillan Service Oct 19,Network Services,MID CHESHIRE HOSPITALS NHS FT,0000626250,"47,536.50",
Department of Health,The Christie NHS Foundation Trust,03/10/2019,Service & Maintenance Contract,Network Services,MRI DEVICES LTD,0000624764,"34,200.00",
Department of Health,The Christie NHS Foundation Trust,15/10/2019,Blood Products,Network Services,NHS BLOOD AND TRANSPLANT,0000627676,"172,291.34",
Department of Health,The Christie NHS Foundation Trust,24/10/2019,Blood Products,Network Services,NHS BLOOD AND TRANSPLANT,0000622088,"46,053.84",
Department of Health,The Christie NHS Foundation Trust,15/10/2019,NHS Litigation (NHSLA),Quality & Standards,NHS LITIGATION AUTHORITY,0000627675,"111,326.40",
Department of Health,The Christie NHS Foundation Trust,10/10/2019,Stock for all Wards & Departments,All Wards and Departments,NHS SUPPLY CHAIN,0000625063,"62,787.82",
Department of Health,The Christie NHS Foundation Trust,03/10/2019,Stock for all Wards & Departments,All Wards and Departments,NHS SUPPLY CHAIN,0000624496,"53,237.66",
Department of Health,The Christie NHS Foundation Trust,31/10/2019,Stock for all Wards & Departments,All Wards and Departments,NHS SUPPLY CHAIN,0000626666,"62,967.82",
Department of Health,The Christie NHS Foundation Trust,24/10/2019,Stock for all Wards & Departments,All Wards and Departments,NHS SUPPLY CHAIN,0000627309,"49,214.90",
Department of Health,The Christie NHS Foundation Trust,17/10/2019,Drugs,Drugs,NOVARTIS PHARMACEUTICALS UK LTD,0000625337,"257,184.00",
Department of Health,The Christie NHS Foundation Trust,03/10/2019,Drugs,Drugs,NOVARTIS PHARMACEUTICALS UK LTD,0000625340,"257,184.00",
Department of Health,The Christie NHS Foundation Trust,31/10/2019,Software Licences,Corporate Development,ODYSSEY INTERACTIVE LTD T/A INTERACT,0000625995,"26,496.00",
Department of Health,The Christie NHS Foundation Trust,03/10/2019,Maintenance Apr 19 to Mar 20,Network Services,PHILIPS HEALTHCARE,0000623350,"165,080.70",
Department of Health,The Christie NHS Foundation Trust,31/10/2019,Patient Accomodation,Network Services,STAYCITY MANCHESTER LTD,0000625701,"96,805.76",
Department of Health,The Christie NHS Foundation Trust,24/10/2019,Patient Accomodation,Network Services,STAYCITY MANCHESTER LTD,0000623924,"110,747.12",
Department of Health,The Christie NHS Foundation Trust,10/10/2019,Patient Accomodation,Network Services,STAYCITY MANCHESTER LTD,0000625377,"43,020.56",
Department of Health,The Christie NHS Foundation Trust,03/10/2019,Patient Accomodation,Network Services,STAYCITY MANCHESTER LTD,0000621146,"80,053.04",
Department of Health,The Christie NHS Foundation Trust,03/10/2019,Medway System Support- Oct 19,FInance & Business Development,SYSTEM C HEALTHCARE,0000624278,"22,779.00",
Department of Health,The Christie NHS Foundation Trust,31/10/2019,Medway System Support- Nov 19,Finance & Business Development,SYSTEM C HEALTHCARE,0000626656,"22,779.00",
Department of Health,The Christie NHS Foundation Trust,03/10/2019,Blood Products,Network Services,THE ANTHONY NOLAN BONE MARROW,0000621108,"48,843.36",
Department of Health,The Christie NHS Foundation Trust,10/10/2019,Drugs,Drugs,THE CHRISTIE CLINIC (HCA),0000621657,"38,640.00",
Department of Health,The Christie NHS Foundation Trust,24/10/2019,Christie @ Oldham - Jul 19 to Sep 19,Estates & Facilities,THE PENNINE ACUTE HOSPITAL NHS TRUST,0000626170,"38,140.50",
Department of Health,The Christie NHS Foundation Trust,10/10/2019,Software Licences,Clinical Support & Specialist Surgery,TRISOFT LTD,0000625763,"36,261.58",
Department of Health,The Christie NHS Foundation Trust,31/10/2019,Research Project,Research & Innovation,UNIVERSITY OF MANCHESTER,0000627257,"87,969.50",
Department of Health,The Christie NHS Foundation Trust,31/10/2019,Research Project,Research & Innovation,UNIVERSITY OF MANCHESTER,0000627258,"87,969.50",
Department of Health,The Christie NHS Foundation Trust,24/10/2019,Proton Beam Development (PBT),Network Services,VARIAN MEDICAL SYSTEMS UK LTD,0000626070,"52,750.00",
